Cogmind - Beta 16.1 @@@ ROGUE MODE // 2026.02.25 @ 14:33:57 Player: MrWaffler Result: Destroyed by S-27 Virus with Autogun Performance ------------- Evolutions (6) 3000 Regions Visited (9) 1800 Robots Destroyed (98) 490 Value Destroyed (3487) 3487 Prototype IDs (8) 160 Alien Tech Used (0) 0 Bonus (0) 0 TOTAL SCORE: 8937 Bonus ------- None Cogmind --------- Core Integrity 0/1150 Matter 218/300 Energy 18/100 System Corruption 5% Temperature Cool (0) Movement Rolling (100) Location -4/Factory Parts ------- > --- POWER (2) -------- (None) > --- PROPULSION (6) --- Armored Huge Wheel > --- UTILITY (7) ------ Improved Signal Interpreter Advanced Terrain Scan Processor > --- WEAPON (4) ------- (None) > --- INVENTORY (5) ---- VTOL Module Advanced Sensor Array Peak State ------------ > --- POWER ------------ Antimatter Reactor Light Antimatter Reactor > --- PROPULSION ------- Armored Huge Wheel Armored Huge Wheel Armored Huge Wheel > --- UTILITY ---------- Large Storage Unit Advanced Sensor Array Improved Signal Interpreter Advanced Terrain Scanner Advanced Terrain Scan Processor Improved Cloaking Device Improved Medium Armor Plating > --- WEAPON ----------- Tesla Rifle Improved Arc Projector Improved Arc Projector Kinetic Spear > --- INVENTORY -------- Light Angular Momentum Engine Armored Huge Wheel Armored Huge Wheel Armored Huge Wheel Armored Huge Wheel Advanced Heat Sink Advanced Heat Sink Improved Sensor Array Plasma Rifle Gauss Rifle Enhanced Gauss Cannon [Rating: 98] Favorites ----------- Power Improved Deuterium Engine Engine Improved Deuterium Engine Power Core Light Nuclear Core Reactor Light Antimatter Reactor Propulsion Improved Titanium Leg Treads Light Treads Leg Improved Titanium Leg Wheel Armored Huge Wheel Hover Unit Cooled Airjet Utility Large Storage Unit Device Improved Sensor Array Storage Large Storage Unit Processor Improved Signal Interpreter Protection Improved Medium Armor Plating Weapon Heavy Particle Gun Energy Gun Heavy Particle Gun Ballistic Gun Assault Rifle Ballistic Cannon Mini Assault Cannon Launcher Grenade Launcher Impact Weapon Heavy Mace Piercing Weapon Kinetic Spear Build | -11 -10 -10 -9 -9 -8 -7 -6 -5 -4 ------- Run | Yrd Mat Min Mat Min Mat Fac Fac Fac Fac Slots Evolved 12 | . . . 2 . 2 2 2 2 2 Power 1 | . . . . . . . . 1 . Propulsion 4 | . . . . . 1 1 . 1 1 Utility 5 | . . . . . 1 1 2 . 1 Weapon 2 | . . . 2 . . . . . . Parts Attached 127 | 7 1 1 16 5 41 18 12 9 17 Power 18 | 1 . . 2 1 7 2 1 1 3 Engine 10 | 1 . . 2 1 2 1 1 1 1 Core 6 | . . . . . 5 1 . . . Reactor 2 | . . . . . . . . . 2 Propulsion 36 | 2 . . 3 1 11 7 3 2 7 Treads 1 | . . . . . 1 . . . . Leg 26 | 2 . . 3 1 9 6 3 2 . Wheel 8 | . . . . . 1 . . . 7 Hover 1 | . . . . . . 1 . . . Flight . | . . . . . . . . . . Utility 31 | 2 1 . 1 1 8 7 6 1 4 Device 17 | 1 . . . 1 4 4 3 . 4 Storage 3 | 1 1 . 1 . . . . . . Processor 5 | . . . . . 2 2 1 . . Hackware . | . . . . . . . . . . Protection 6 | . . . . . 2 1 2 1 . Artifact . | . . . . . . . . . . Weapon 42 | 2 . 1 10 2 15 2 2 5 3 Energy Gun 21 | . . . 7 . 6 1 2 4 1 Energy Cannon . | . . . . . . . . . . Ballistic Gun 10 | 2 . . 1 1 5 . . . 1 Ballistic Cannon 2 | . . . . . . 1 . . 1 Launcher 7 | . . 1 2 1 3 . . . . Special Weapon . | . . . . . . . . . . Impact Weapon 1 | . . . . . 1 . . . . Slashing Weapon . | . . . . . . . . . . Piercing Weapon 1 | . . . . . . . . 1 . Special Melee Weapon . | . . . . . . . . . . Unidentified Prototypes 6 | . . . . . 2 2 1 1 . Parts Lost 56 | . . . 2 7 21 1 . 2 23 Power 4 | . . . . . 1 . . . 3 Propulsion 16 | . . . . 1 7 1 . 1 6 Utility 9 | . . . . . 2 . . . 7 Weapon 27 | . . . 2 6 11 . . 1 7 Highest Loss Streak 23 | . . . 1 3 14 1 . 2 23 To Critical Strikes 1 | . . . . . . . . . 1 Average Backups 12 | 4 6 10 11 12 13 14 14 13 10 Power 1 | . 1 1 1 1 1 2 2 1 . Propulsion 1 | 3 3 2 2 1 1 2 1 . 3 Utility 5 | . . 2 3 8 6 5 5 7 3 Weapon 3 | . 1 5 5 1 3 3 4 5 3 Tool/Special . | . . . . . . . . . . Unused Backups 27 | . 2 . 4 2 7 7 2 1 2 Power 5 | . . . 1 . 2 2 . . . Propulsion 7 | . 2 . 3 . 2 . . . . Utility 10 | . . . . 2 3 2 1 . 2 Weapon 5 | . . . . . . 3 1 1 . Tool/Special . | . . . . . . . . . . Average Slot Usage (%) 95 | . 100 100 97 98 90 99 99 99 77 Engine 7 | . 14 14 11 11 . 5 6 11 4 Core 1 | . . . . . 6 1 . . . Leg 23 | . 28 28 22 21 22 29 26 28 2 Wheel 1 | . . . . . . . . . 12 Device 11 | . 14 14 11 11 6 14 15 10 13 Storage 8 | . 14 14 11 11 9 7 6 5 4 Processor 5 | . . . . . 7 6 7 11 10 Protection 2 | . . . . . 1 . 8 6 3 Energy Gun 21 | . . . 23 33 20 20 24 19 12 Ballistic Gun 7 | . 28 25 18 4 12 3 . . 2 Peak Build Rating 98 | 9 10 10 18 19 35 54 67 83 98 Average Rating 41 | 4 9 10 15 17 27 44 61 74 83 On Entrance 29 | . 9 10 10 18 18 26 54 65 83 Avg Prop Armor Cover (%) 9 | . . . . . 10 7 . . . Naked Turns . | . . . . . . . . . . Heaviest Build 77 | 13 18 18 31 33 41 53 61 71 77 Greatest Support 84 | 20 20 20 34 34 51 80 80 83 84 Greatest Overweight (x) 8 | 3 . . . . 8 3 . 1 2 Average Overweight (x) . | . . . . . . . . . . Largest Inventory Capacity 15 | 8 10 10 15 15 15 15 15 15 15 Average Capacity 14 | 7 8 10 13 15 15 15 15 15 14 Most Carried 15 | 6 10 10 15 15 15 15 15 15 15 Average Carried 13 | 4 6 10 11 13 13 14 14 13 13 Final Capacity 15 | 8 10 10 15 15 15 15 15 15 5 Final Carried 15 | 6 10 10 14 15 11 15 15 15 2 Class Distribution -------------------- 27% | Skirmisher 25% | Scavenger-Skirmisher 13% | Assassin 12% | Scavenger-Gunner 8% | Mutant 7% | Tank Dominant Class ---------------- Mutant | -10/Materials Mutant | -10/Mines Skirmisher | -9/Materials Scavenger-Gunner | -9/Mines Scavenger-Skirmisher | -8/Materials Skirmisher | -7/Factory Skirmisher | -6/Factory Assassin | -5/Factory Skirmisher | -4/Factory Resources | -11 -10 -10 -9 -9 -8 -7 -6 -5 -4 ----------- Run | Yrd Mat Min Mat Min Mat Fac Fac Fac Fac Matter Collected 2866 | 288 . 47 356 282 894 354 341 130 174 Remotely . | . . . . . . . . . . Salvage Created 4113 | 101 . 83 662 142 1266 497 779 350 233 Parts 202 | 5 . 9 43 . 64 29 15 22 15 Haulers Intercepted 2 | . . . . . 1 . 1 . . Recyclers Shooed 1 | . . . 1 . . . . . . Parts Field Recycled . | . . . . . . . . . . Retrieved Matter . | . . . . . . . . . . Parts Self-Destructed . | . . . . . . . . . . Prevented . | . . . . . . . . . . Parts Restored . | . . . . . . . . . . Kills | -11 -10 -10 -9 -9 -8 -7 -6 -5 -4 ------- Run | Yrd Mat Min Mat Min Mat Fac Fac Fac Fac Combat Hostiles Destroyed 95 | . . 3 23 15 24 13 9 5 3 Guns 66 | . . . 20 7 19 9 6 4 1 Cannons 5 | . . . . . . 4 . . 1 AOE 18 | . . 3 3 8 4 . . . . Classes Destroyed 17 | 2 . 2 2 2 6 1 1 1 . Worker 3 | . . 1 1 . . 1 . . . Builder 4 | . . . . . 2 . 1 . 1 Tunneler 2 | 1 . . . 1 . . . . . Hauler 2 | . . . . . 1 . 1 . . Recycler 5 | 1 . 1 . . 1 1 1 . . Operator 1 | . . . . . 1 . . . . Swarmer 21 | . . 3 11 . . 7 . . . Grunt 33 | . . . 9 . 14 3 7 . . Brawler 2 | . . . . . 2 . . . . Duelist 1 | . . . . . . . 1 . . Sentry 11 | . . . 3 . 3 2 1 1 1 Demolisher 1 | . . . . 1 . . . . . Specialist 4 | . . . . . 4 . . . . Hunter 2 | . . . . . . . . 2 . Programmer 5 | . . . . . . 1 . 2 2 Heavy 1 | . . . . . 1 . . . . Assembled 14 | . . . . 14 . . . . . Best Kill Streak 5 | 2 . 5 5 5 5 4 4 2 2 Combat Bots Only 5 | . . 3 4 5 5 4 4 2 1 Max Kills in Single Turn 4 | 1 . 3 4 2 2 1 1 1 1 Gunslinging 1 | . . . . 1 1 . . . . Exploded 3 | . . 2 3 2 1 . . . . Melee . | . . . . . . . . . . Uniques/NPCs Destroyed . | . . . . . . . . . . Combat | -11 -10 -10 -9 -9 -8 -7 -6 -5 -4 -------- Run | Yrd Mat Min Mat Min Mat Fac Fac Fac Fac Hostile Shots Fired 840 | . 4 6 92 24 161 96 46 52 359 Missed 256 | . 2 3 25 5 49 36 12 12 112 Hits 584 | . 2 3 67 19 112 60 34 40 247 Melee 8 | . . . . 4 . . 4 . . Projectile 576 | . 2 3 67 15 112 60 30 40 247 AOE 8 | . . . . 8 . . . . . Critical Strikes 27 | . . . 2 . 9 1 1 1 13 Damage Taken 10486 | . 24 95 755 710 2402 720 568 794 4418 Core 2097 | . . 39 59 229 448 132 16 21 1153 Absorbed by Shields 53 | . . . . . . 28 . . 25 Core Remaining (%) 72 | 100 . 84 . 28 18 81 98 97 . Volleys Fired 205 | 3 . 2 44 18 63 24 24 15 12 Largest 4 | 2 . 2 4 4 4 4 4 4 4 Hottest 270 | 40 . 50 145 170 189 219 259 249 270 Shots Fired 735 | 6 . 4 167 63 203 96 94 59 43 Gun 684 | 6 . 2 163 50 193 77 94 59 40 Cannon 22 | . . . . . . 19 . . 3 Launcher 29 | . . 2 4 13 10 . . . . Special . | . . . . . . . . . . Kinetic 190 | 6 . 2 67 1 79 24 . . 11 Thermal 403 | . . . 86 33 83 72 94 26 9 Explosive 29 | . . 2 4 13 10 . . . . Electromagnetic 113 | . . . 10 16 31 . . 33 23 Robot Hit Streak 25 | 5 . 7 10 5 25 18 19 5 5 Robot Miss Streak 5 | . . 1 5 4 4 3 2 2 3 Penetration Max . | . . . . . . . . . . Secondary Targets 7 | . . . 2 1 3 . 1 . . Max Gunslinging Chain 1 | . . . 1 1 1 . 1 . . Shots Hit Robots 447 | 5 . 3 89 34 133 51 67 37 28 Core Hits 227 | 3 . 4 36 42 61 26 34 14 7 Critical Kills . | . . . . . . . . . . Critical Parts Destroyed . | . . . . . . . . . . Critical Strikes 9 | . . . . . 1 4 2 1 1 Burn 7 | . . . . . 1 3 2 1 . Blast 2 | . . . . . . 1 . . 1 Melee Attacks 28 | . . . . . 2 1 6 12 7 Impact 18 | . . . . . 2 1 6 9 . Slashing . | . . . . . . . . . . Piercing 10 | . . . . . . . . 3 7 Sneak Attacks 1 | . . . . . . . 1 . . Combat Hostiles . | . . . . . . . . . . Follow-up Attacks . | . . . . . . . . . . Damage Inflicted 9152 | 64 . 288 1266 848 2791 1071 1443 783 598 Guns 6779 | 64 . 15 1055 326 2029 788 1391 682 429 Cannons 392 | . . . . . . 283 . . 109 Explosions 1906 | . . 273 211 522 762 . . 101 37 Melee 52 | . . . . . . . 52 . . Ramming 23 | . . . . . . . . . 23 Kinetic 1864 | 64 . 15 440 12 784 300 . . 249 Thermal 4524 | . . . 491 208 997 771 1391 479 187 Explosive 1692 | . . 273 211 522 686 . . . . Electromagnetic 997 | . . . 124 106 324 . . 304 139 Impact 52 | . . . . . . . 52 . . Slashing . | . . . . . . . . . . Piercing . | . . . . . . . . . . Highest Corruption 5 | . . . . . . . . 1 5 Average Corruption 2 | . . . . . . . . 1 4 Corruption Purged . | . . . . . . . . . . Corruption Blocked . | . . . . . . . . . . Effects 5 | . . . . . . . . . 5 Message Errors 1 | . . . . . . . . . 1 Matter Fused 2 | . . . . . . . . . 2 Heat Flow Errors 1 | . . . . . . . . . 1 Weapon Failures 1 | . . . . . . . . . 1 Overload Shots . | . . . . . . . . . . Overflow Damage 137 | . . 16 1 28 63 8 . 21 . Projectiles 8 | . . . . . . 8 . . . Explosions 129 | . . 16 1 28 63 . . 21 . Melee . | . . . . . . . . . . Knockbacks 2 | . . . . . . 2 . . . Impact . | . . . . . . . . . . Kinetic 2 | . . . . . . 2 . . . Secondary . | . . . . . . . . . . Self-Inflicted Damage 565 | . . 68 45 159 176 . . 77 40 Shots 19 | . . 2 2 8 5 . . 1 1 Rammed 4 | . . . . . . . . . 4 Targets Rammed 4 | . . . . . . . . . 4 Kicked . | . . . . . . . . . . Crushed . | . . . . . . . . . . Highest Temperature 410 | . . . 273 222 406 359 226 410 235 Average Temperature 111 | . . . 90 66 141 123 93 153 53 Received Heat Transfer 1428 | . 12 . 201 . 621 72 171 45 306 Effects 9 | . . . . . 6 . . 3 . Shutdowns 2 | . . . . . 1 . . 1 . Interference 7 | . . . . . 5 . . 2 . Siege Activations . | . . . . . . . . . . Martial Activations . | . . . . . . . . . . Shielding Activations . | . . . . . . . . . . Robots Disrupted . | . . . . . . . . . . Combat Hostiles . | . . . . . . . . . . Robots Corrupted 2 | . . . . . . . . 1 1 Combat Hostiles 2 | . . . . . . . . 1 1 Parts Fried 4 | . . . . . 2 . . . 2 Impact Corruptions . | . . . . . . . . . . Robots Melted 5 | . . . . . 1 . 4 . . Combat Hostiles 4 | . . . . . 1 . 3 . . Parts Melted 19 | . . . . . 2 2 15 . . Heat Transferred 9576 | . . . 1100 475 2104 1776 2981 790 350 Parts Sabotaged . | . . . . . . . . . . Parts Stolen . | . . . . . . . . . . Parts Stripped . | . . . . . . . . . . Power Chain Reactions 3 | . . . . . 1 . . 1 1 Alert | -11 -10 -10 -9 -9 -8 -7 -6 -5 -4 ------- Run | Yrd Mat Min Mat Min Mat Fac Fac Fac Fac Maximum Alert Level 1 | . . . 1 . 1 . . . . Low Security (%) 94 | 100 100 100 70 100 94 100 100 100 100 Level 1 5 | . . . 29 . 5 . . . . Level 2 . | . . . . . . . . . . Level 3 . | . . . . . . . . . . Level 4 . | . . . . . . . . . . Level 5 . | . . . . . . . . . . High Security . | . . . . . . . . . . Max Security . | . . . . . . . . . . Peak Influence 370 | 5 . 96 370 130 239 115 100 114 64 Initial 130 | . . . 33 130 . 76 49 14 32 Average 57 | 1 . 36 129 25 115 41 32 25 10 Influence Increases 2670 | 10 . 96 682 98 760 366 234 190 234 Destroy 0b10 Robot/C 1620 | . . 60 460 20 480 260 180 100 60 Destroy 0b10 Robot/NC 85 | 10 . 10 5 5 25 10 15 . 5 Destroy Leader 354 | . . 10 90 . 112 60 32 30 20 Successful Hack 33 | . . . 27 . . . . 6 . Disable Machine 105 | . . . 30 15 15 15 . 15 15 Destroy Structure 233 | . . 16 25 58 83 6 7 24 14 Partial Spotted 15 | . . . . . . . . . 15 Lose Combat Pursuer 225 | . . . 45 . 45 15 . 15 105 Influence Decreases 2670 | 10 . 10 434 432 592 433 305 154 300 Entered New Map 451 | . . . 53 204 . 92 52 16 34 Time Decay 1755 | 10 . 10 361 158 382 331 253 118 132 Lost Part 464 | . . . 20 70 210 10 . 20 134 Squads Dispatched 19 | . 2 . 2 . 6 2 2 2 3 Investigation 5 | . 1 . 1 . 1 . . 1 1 Extermination 5 | . . . . . . 2 1 1 1 Reinforcement 9 | . 1 . 1 . 5 . 1 . 1 Assault . | . . . . . . . . . . Garrison . | . . . . . . . . . . Intercept . | . . . . . . . . . . Searches Triggered . | . . . . . . . . . . Construction Impeded . | . . . . . . . . . . Haulers Reinforced 1 | . . . . . . . 1 . . Active Scanning Responses . | . . . . . . . . . . Cargo Convoy Interrupts . | . . . . . . . . . . Stealth | -11 -10 -10 -9 -9 -8 -7 -6 -5 -4 --------- Run | Yrd Mat Min Mat Min Mat Fac Fac Fac Fac Distress Signals 9 | . . . 3 1 2 . . . 3 Communications Jammed . | . . . . . . . . . . Distress Signals . | . . . . . . . . . . Times Spotted 148 | . 1 3 34 18 32 17 11 7 25 Peak Tracking Total 17 | . 1 3 7 3 7 4 4 3 17 Tactical Retreats 12 | . . . 2 3 3 1 . 1 2 Traps | -11 -10 -10 -9 -9 -8 -7 -6 -5 -4 ------- Run | Yrd Mat Min Mat Min Mat Fac Fac Fac Fac Traps Triggered 3 | . 1 . . . 1 1 . . . Indirectly . | . . . . . . . . . . Trap Hack Attempts . | . . . . . . . . . . Triggered . | . . . . . . . . . . Disarmed . | . . . . . . . . . . Reprogrammed . | . . . . . . . . . . Reused . | . . . . . . . . . . Traps Extracted . | . . . . . . . . . . Installed . | . . . . . . . . . . Triggered . | . . . . . . . . . . Machines | -11 -10 -10 -9 -9 -8 -7 -6 -5 -4 ---------- Run | Yrd Mat Min Mat Min Mat Fac Fac Fac Fac Machines Disabled 7 | . . . 2 1 1 1 . 1 1 Max in Single Turn 1 | . . . 1 1 1 1 . 1 1 Garrison Access 1 | . . . . . . . 1 . . Machines Repaired . | . . . . . . . . . . Machines Dismantled . | . . . . . . . . . . Machines Sabotaged . | . . . . . . . . . . Overloaded Fab Kills . | . . . . . . . . . . Hacking | -11 -10 -10 -9 -9 -8 -7 -6 -5 -4 --------- Run | Yrd Mat Min Mat Min Mat Fac Fac Fac Fac Machines Accessed 17 | . . . 4 . 2 4 1 4 2 Terminals 10 | . . . 3 . 1 1 . 3 2 Fabricators . | . . . . . . . . . . Repair Stations . | . . . . . . . . . . Recycling Units 2 | . . . . . 1 1 . . . Scanalyzers 3 | . . . 1 . . 1 . 1 . Garrison Access 2 | . . . . . . 1 1 . . Total Hacks 39 | . . . 14 . 6 6 2 7 4 Successful 15 | . . . 8 . 3 1 1 2 . Failed 23 | . . . 6 . 3 4 1 5 4 Catastrophic 8 | . . . . . 2 1 1 1 3 Database Lockouts 1 | . . . . . . 1 . . . Manual 13 | . . . 3 . 1 1 . 4 4 Terminals 23 | . . . 10 . 3 1 . 5 4 Fabricators . | . . . . . . . . . . Repair Stations . | . . . . . . . . . . Recycling Units 5 | . . . . . 3 2 . . . Scanalyzers 8 | . . . 4 . . 2 . 2 . Garrison Access 3 | . . . . . . 1 2 . . Terminal Hacks 8 | . . . 5 . 2 . . 1 . Record 3 | . . . 1 . 1 . . 1 . Robot Analysis 2 | . . . 1 . 1 . . . . Prototype ID Bank 1 | . . . 1 . . . . . . Branch Access Points 2 | . . . 2 . . . . . . Fabricator Hacks . | . . . . . . . . . . Repair Station Hacks . | . . . . . . . . . . Recycling Unit Hacks 1 | . . . . . 1 . . . . Report Inventory 1 | . . . . . 1 . . . . Scanalyzer 4 | . . . 3 . . 1 . . . Retrieve Study 4 | . . . 3 . . 1 . . . Garrison Access Hacks 1 | . . . . . . . 1 . . Seal Access 1 | . . . . . . . 1 . . Unauthorized Hacks 1 | . . . . . . . . 1 . Terminals 1 | . . . . . . . . 1 . Assimilate 1 | . . . . . . . . 1 . Fabricators . | . . . . . . . . . . Repair Stations . | . . . . . . . . . . Recycling Units . | . . . . . . . . . . Scanalyzers . | . . . . . . . . . . Garrison Access . | . . . . . . . . . . Data Cores Recovered . | . . . . . . . . . . Used . | . . . . . . . . . . Hacking Detections 14 | . . . 3 . 2 3 1 3 2 Full Trace Events 4 | . . . 1 . 1 . . 1 1 Feedback Events . | . . . . . . . . . . Feedback Blocked . | . . . . . . . . . . Robot Schematics Acquired . | . . . . . . . . . . Robots Built . | . . . . . . . . . . Authchips . | . . . . . . . . . . Time . | . . . . . . . . . . Total Robot Build Rating . | . . . . . . . . . . Part Schematics Acquired . | . . . . . . . . . . Parts Built . | . . . . . . . . . . Authchips . | . . . . . . . . . . Time . | . . . . . . . . . . Total Part Build Rating . | . . . . . . . . . . Part Studies Acquired 3 | . . . 2 . . 1 . . . Parts Repaired . | . . . . . . . . . . Time . | . . . . . . . . . . Parts Recycled . | . . . . . . . . . . Recycled Matter . | . . . . . . . . . . Retrieved Matter . | . . . . . . . . . . Retrieved Components . | . . . . . . . . . . Parts Scanalyzed . | . . . . . . . . . . Part Schematics Acquired . | . . . . . . . . . . Parts Damaged . | . . . . . . . . . . Bothacking | -11 -10 -10 -9 -9 -8 -7 -6 -5 -4 ------------ Run | Yrd Mat Min Mat Min Mat Fac Fac Fac Fac Used RIF Installer . | . . . . . . . . . . Robots Hacked . | . . . . . . . . . . Non-combat . | . . . . . . . . . . Combat . | . . . . . . . . . . Robot Hacks Applied . | . . . . . . . . . . Relay Couplers Released 2 | . . . . . . . 2 . . Machine Destruction 2 | . . . . . . . 2 . . Fabnet Peak Effective % . | . . . . . . . . . . Robots Rewired . | . . . . . . . . . . Allies Hacked . | . . . . . . . . . . Hacks Repelled . | . . . . . . . . . . Allies | -11 -10 -10 -9 -9 -8 -7 -6 -5 -4 -------- Run | Yrd Mat Min Mat Min Mat Fac Fac Fac Fac Total Allies 1 | . . . . . . . . 1 . Largest Group 1 | . . . . . . . . 1 . Highest-Rated Group 10 | . . . . . . . . 10 . Highest-Rated Ally 10 | . . . . . . . . 10 . Total Orders . | . . . . . . . . . . Ally Attacks . | . . . . . . . . . . Total Damage . | . . . . . . . . . . Kills . | . . . . . . . . . . Allies Corrupted . | . . . . . . . . . . Allies Melted . | . . . . . . . . . . Intel | -11 -10 -10 -9 -9 -8 -7 -6 -5 -4 ------- Run | Yrd Mat Min Mat Min Mat Fac Fac Fac Fac Active Infowar (turns) 4974 | 10 144 41 980 763 557 895 380 711 493 Sensors 2438 | . . . . . . 893 377 711 457 Terrain 3735 | 10 144 41 980 231 547 308 365 693 416 Seismic 542 | . . . . 532 10 . . . . Cloaking 400 | . . . . . . . . . 400 Robot Analysis Total 2 | . . . 1 . 1 . . . . Derelict Logs Recovered 1 | . . . . 1 . . . . . Drone Launches . | . . . . . . . . . . Drone Recoveries . | . . . . . . . . . . Exploration | -11 -10 -10 -9 -9 -8 -7 -6 -5 -4 ------------- Run | Yrd Mat Min Mat Min Mat Fac Fac Fac Fac Turns Passed 6059 | 81 144 41 980 763 923 1054 658 834 581 Spaces Moved 3502 | 47 113 27 568 514 415 641 357 417 403 Core 22 | 18 . . . . 4 . . . . Treads 8 | . . . . . 8 . . . . Legs 3071 | 29 113 27 568 514 373 632 357 417 41 Wheels 401 | . . . . . 30 9 . . 362 Hover . | . . . . . . . . . . Flight . | . . . . . . . . . . Fastest Speed 50 | 50 120 120 120 130 103 125 122 120 100 Average Speed 124 | 119 120 120 126 130 128 128 127 122 102 Slowest Speed 450 | 200 120 120 130 130 450 200 130 190 130 Overloaded Moves . | . . . . . . . . . . Propulsion Burnouts . | . . . . . . . . . . Robots Hopped . | . . . . . . . . . . Potential Cave-ins 6 | . . . . . . . . 6 . Cave-ins Triggered . | . . . . . . . . . . Exploration Rate (%) 27 | 4 34 11 50 82 36 19 10 13 16 Regions Visited 9 Branch Regions 2 Pre-discovered Areas 1 | . . . . 1 . . . . . Known Exits Taken 4 | . . . 1 . . 1 1 1 . Unknown Exits Taken 5 | 1 1 1 . 1 1 . . . . Scrap Searched 3 | . . . . 3 . . . . . Spaces Dug 31 | . . . 6 . 2 . 5 11 7 Terrain Destroyed 261 | . . 22 26 68 112 2 5 19 7 Melee 25 | . . . . . 2 . 5 11 7 Projectile 2 | . . . . . . 2 . . . AOE 234 | . . 22 26 68 110 . . 8 . Terrain Rammed . | . . . . . . . . . . Walls Destroyed . | . . . . . . . . . . Machines Disabled . | . . . . . . . . . . Actions | -11 -10 -10 -9 -9 -8 -7 -6 -5 -4 --------- Run | Yrd Mat Min Mat Min Mat Fac Fac Fac Fac Total 4666 | 62 122 30 724 564 651 814 484 681 534 Wait 549 | . . . 70 8 65 90 48 208 60 Move 3493 | 46 112 26 567 513 414 640 356 416 403 Hop . | . . . . . . . . . . Pick Up 93 | 6 6 . 13 9 22 17 9 6 5 Fast Attach 29 | 7 . . 1 . 13 1 1 1 5 Attach 43 | . . . 3 7 16 2 2 3 10 Detach 1 | . . . . . 1 . . . . Swap 132 | . 1 2 13 6 37 21 26 14 12 Drop 89 | . 3 . 13 3 18 18 12 6 16 Fire 205 | 3 . 2 44 18 63 24 24 15 12 Melee 28 | . . . . . 2 1 6 12 7 Ram 4 | . . . . . . . . . 4 Kick . | . . . . . . . . . . Crush . | . . . . . . . . . . Escape Stasis . | . . . . . . . . . . Rewire . | . . . . . . . . . . Trap . | . . . . . . . . . . Miscellaneous . | . . . . . . . . . . Route ------- -11/Scrapyard -10/Materials -10/Mines -9/Materials (discovered 2 exits: *Min x2) -9/Mines -8/Materials -7/Factory -6/Factory -5/Factory (discovered 3 exits: *Fac x2 / *Upp) -4/Factory History --------- Turn | Location | Event 35 | -11/Scrapyard | Discovered new exit (range 14) 82 | -11/Scrapyard | Entered Materials 83 | -10/Materials | Met a group of wandering Federalists 186 | -10/Materials | Discovered new exit (range 14) 226 | -10/Materials | Entered Mines 247 | -10/Mines | Discovered new exit (range 5) 267 | -10/Mines | Entered Materials 267 | -9/Materials | Evolved 2 slots: Weapon x2 473 | -9/Materials | Identified exit to Mines 560 | -9/Materials | Build established: Skirmisher 1247 | -9/Materials | Entered Mines 1256 | -9/Mines | Build established: Scavenger-Skirmisher 1264 | -9/Mines | Assembled infested the area 1279 | -9/Mines | Core integrity fell below 50% 1309 | -9/Mines | Lost 3 parts (3w) 1576 | -9/Mines | Learned location of Storage (-7) 1666 | -9/Mines | Found a Scrap Suit stashed away for nefarious purposes 1668 | -9/Mines | Found Scrap Suit 1770 | -9/Mines | Build established: Scavenger-Gunner 1823 | -9/Mines | Learned Materials emergency access door positions 1984 | -9/Mines | Discovered new exit (range 12) 1985 | -9/Mines | Joined a pair of Derelicts in attacking an 0b10 outpost 2010 | -9/Mines | Entered Materials 2010 | -8/Materials | Evolved 2 slots: Propulsion x1, Utility x1 2221 | -8/Materials | Lost 3 parts (1p2w) 2385 | -8/Materials | Build established: Scavenger-Skirmisher 2731 | -8/Materials | Discovered new exit (range 12) 2746 | -8/Materials | Core integrity fell below 50% 2843 | -8/Materials | Lost 14 parts (5n2u7w) 2891 | -8/Materials | Core integrity fell below 20% 2933 | -8/Materials | Entered Factory 2933 | -7/Factory | Evolved 2 slots: Propulsion x1, Utility x1 3228 | -7/Factory | Central database locked down 3453 | -7/Factory | Build established: Skirmisher 3878 | -7/Factory | Discovered new exit (range 15) 3896 | -7/Factory | Identified exit to Factory 3987 | -7/Factory | Entered another Factory area 3987 | -6/Factory | Evolved 2 slots: Utility x2 4602 | -6/Factory | Discovered new exit (range 15) 4641 | -6/Factory | Identified exit to Factory 4645 | -6/Factory | Entered another Factory area 4645 | -5/Factory | Evolved 2 slots: Power x1, Propulsion x1 4919 | -5/Factory | Discovered new exit (range 9) 4929 | -5/Factory | Identified exit to Upper Caves 5175 | -5/Factory | Build established: Assassin 5231 | -5/Factory | P-70 Sage assimilated allied Technician 6a 5382 | -5/Factory | Discovered new exit (range 17) 5422 | -5/Factory | Discovered new exit (range 9) 5440 | -5/Factory | Identified exit to Factory 5479 | -5/Factory | Entered another Factory area 5479 | -4/Factory | Evolved 2 slots: Propulsion x1, Utility x1 6027 | -4/Factory | Core integrity fell below 50% 6056 | -4/Factory | Core integrity fell below 20% 6060 | -4/Factory | Destroyed by S-27 Virus with Autogun Last Messages --------------- 06042_ Slug penetrates Wall. 06042_ Slug penetrates S-27 Virus. 06042_ S-27 Virus destroyed. 06045_ Adv. Terrain Scanner destroyed. 06045_ Acquired 24 matter. 06047_ Slug penetrates Wall. 06047_ Penetrated by Slug. 06047_ Slug penetrates S-27 Virus. 06049_ Lrg. Storage Unit destroyed. 06049_ Acquired VTOL Module. 06051_ Arm. Huge Wheel destroyed. 06052_ Penetrated by Slug. 06053_ Critical hit (Destroy). 06053_ Kinetic Spear destroyed. 06055_ Critical hit (Burn: +37). 06056_ Slug penetrates Wall. 06056_ Penetrated by Slug. 06056_ Slug penetrates Wall. 06060_ Penetrated by Slug. 06060_ Terminal disabled. Map ----- +----------------------------------------------------+ | ?????????????????????????????????????????????????? | | ????????????????????????????????????????????? | | #???????????????????????????????????????????? | | #???????????????????????????????????????????? | | #???????????????????????????????????????????? | | #???????????????????????????????????????????? | | #???????????????????????????????????????????? | | ####????????????????????????????????????????? | | ####+###?????????????????????????????????? | | ????????????????????????????????? | | ?????? ???????????????????????? | | ???? ???????????????????????? | | k A ???????????????????????? | | % ???????????????????????? | | ???????????????????????? | | = % ?? ????????????????????? | | %= ???????????????????????? | | ###/############### #???T??????????????????? | | # # T#?#???????????????????? | | # " " " # ????#?????????????????? | | """"""""" # " " " # #?#????????????????????? | | # " " " # #??????????#???????????? | | """"""""" # " " " # #??#??#????????????????? | | # " " " # #?????#?????#??????????? | | """"""""" # " " " # m ##?????????????????????? | | # " " " # @ #?#???????????????????? | | + " " " # ##?#???????#???????????? | | ! # " " " # #??????#?#??#?#????????? | | # # #????????????#?????????? | | # ! + #???????#?????#????????? | | ########### # h #?##???????????????????? | | #?#??##?### # #??????????????????????? | | #?##?#?#### "" "" #g gg #?????#?????#????#?????? | | ####?##??## ""G"" /h ss #?#?????????#??????????? | | ##?##?##?#############s##+####??????????#????????? | | ####?#??#????#??# = #???#??#??????#?????? | | ?###?##???#?????# [ #????????#?????#????? | | ####?##?####?#?## #??##?????#?????????? | | ##?##?#?#???#??## #?????#??????#??????? | | #?######??####??# ##?????????#???#????? | | ?#####?###?#?##?# #??????#?#?#????????? | | #####?#?###??#??# #??????#??#?????????? | | #######?##??????# #????#??#???#???????? | | ###?#?####????#?# #?#???#??#?????#????? | | #######?#?##????# ###??#????????#?????? | | ##?#####?##?????# ##???#?#?#??????????? | | ??#?????###?????# #????????????#?#????? | | #######?????????##############?##????????????????? | | ?##?#?#?????#???#????????????#????#????????#?????? | | ###?#???????#?#??#??????????????##?#?????????????? | +----------------------------------------------------+ Best States ------------- Heat Dissipation 83 Coolant Potential 50 Energy Generation 37 Energy Capacity 500 Matter Stores 300 Matter Capacity 300 Sight Range 16 Robot Scan Range 16 Terrain Scan Range 20 Terrain Scan Density 210 Cloak Strength 3 Armor Coverage 450 Evasion (%) 55 Recoil Reduction 1 Item Schematics ----------------- None Robot Schematics ------------------ None Fabricated ------------ Nothing Repaired ---------- Nothing Studied --------- Assault Rifle | -9/Materials | Hacked Sml. Laser | -9/Materials | Hacked Imp. Deuterium Engine | -7/Factory | Hacked Alien Tech Used ----------------- None Achievements -------------- I Survived The Infestation Challenges ------------ None Game ------ Seed FortressXenonDeflector Manual? 0 Play Time 01:57:03 Cumulative 48.0 hours Start 2026.02.24 @ 21:11:49 End 2026.02.25 @ 14:33:57 Sessions 3 Manual Loads 0 Difficulty Rogue Special Mode None Game No. 26 Rogue 23 Adventurer 0 Explorer 3 Win Type - Total 0 Types 0/0/0/0/0/0/0/0/0/0 Lore% 12 Gallery% 31 Achievement% 28 Wizard Run 0 Options --------- Layout 1 ASCII 0 Keyboard 0 Movement Arrows Keybinds 0 Fullscreen 2 Font 32/SmallcapsGlow Map View 50x35 Zoom Use 0% Tactical HUD 1 Map Filters NONE Filters NONE Steam 1 RUN: dee42e89-5b60-45a8-8736-ae6539a6f0a0